bitfinex/quotes_SOLUSD_20240813
["timestamp","ask_amount","ask_price","bid_price","bid_amount"]
[1723536836208,6.8429,146.14,146.1,17.1112]
[1723536836605,19.4623,146.15,146.1,23.9556]
[1723536837205,19.4623,146.15,146.11,6.8441]
[1723536837513,12.62,146.15,146.12,45.37647]
[1723536837697,12.62,146.15,146.13,0.12549]
[1723536838010,6.8419,146.16,146.13,0.12549]
[1723536838211,6.8419,146.16,146.14,0.12549]
[1723536838403,6.8419,146.16,146.14,0.37647]
[1723536838712,12.62,146.17,146.15,0.12549]
[1723536838915,6.8409,146.18,146.15,0.12549]
[1723536840029,12.62,146.19,146.15,0.12549]
[1723536840308,6.8407,146.19,146.15,0.12549]
[1723536840813,6.841,146.18,146.15,0.12549]
[1723536841125,19.4609,146.18,146.15,0.12549]
[1723536841496,6.8399,146.2,146.16,0.12549]
[1723536841686,6.8399,146.2,146.16,1.49347005]
[1723536841887,6.8399,146.2,146.18,0.12549]
[1723536842538,6.8395,146.21,146.18,0.12549]
[1723536842817,6.84,146.2,146.18,0.12549]
[1723536843900,6.8404,146.19,146.18,0.12549]
[1723536844122,6.8399,146.2,146.18,0.12549]
[1723536845312,6.8404,146.19,146.18,0.12549]
[1723536845516,6.8408,146.18,146.17,0.12549]
[1723536845818,6.8408,146.18,146.13,13.4859]
[1723536846021,6.8413,146.17,146.13,13.4859]
[1723536846709,6.8409,146.18,146.14,0.25098]
[1723536846926,6.8414,146.17,146.15,0.12549]
[1723536847431,6.8418,146.16,146.15,0.37647]
[1723536847615,6.8418,146.16,146.15,0.50196]
[1723536847815,6.8413,146.17,146.16,0.12549]
[1723536848113,6.8413,146.17,146.16,0.37647]
[1723536848440,6.8413,146.17,146.16,0.50196]
[1723536848821,12.62,146.2,146.16,0.50196]
[1723536849133,12.62,146.2,146.17,0.12549]
[1723536851009,6.8408,146.18,146.17,0.12549]
[1723536851419,6.8405,146.19,146.17,0.12549]
[1723536851721,19.4605,146.19,146.17,0.12549]
[1723536851917,19.4605,146.19,146.17,0.37647]
[1723536852717,12.62,146.19,146.18,0.12549]
[1723536852917,6.84,146.2,146.18,0.12549]
[1723536853117,6.84,146.2,146.18,0.37647]
[1723536853325,6.8393,146.22,146.19,0.12549]
[1723536853523,6.8393,146.22,146.19,0.37647]
[1723536853722,6.8394,146.21,146.2,0.12549]
[1723536853932,6.8394,146.21,146.2,0.37647]
[1723536854446,6.8394,146.21,146.2,0.50196]
[1723536855136,19.4591,146.22,146.2,0.50196]
[1723536855437,19.4591,146.22,146.21,0.12549]
[1723536855638,19.4591,146.22,146.21,0.50196]
[1723536857251,19.4585,146.24,146.21,0.50196]
[1723536857412,6.8385,146.23,146.22,0.12549]
[1723536857619,17.0921,146.27,146.22,0.37647]
[1723536857937,6.8384,146.24,146.23,0.12549]
[1723536858114,6.8384,146.24,146.23,0.25098]
[1723536858317,6.8384,146.24,146.23,0.50196]
[1723536859014,6.8384,146.24,146.23,0.12549]
[1723536860538,6.8384,146.24,146.23,0.25098]
[1723536862224,12.62,146.24,146.18,6.502]
[1723536862558,19.46,146.2,146.18,6.502]
[1723536862747,12.62,146.2,146.18,6.502]
[1723536863044,6.8395,146.21,146.18,6.502]
[1723536863425,6.8399,146.2,146.18,6.502]
[1723536863631,6.8399,146.2,146.19,0.25098]
[1723536863951,6.8399,146.2,146.19,45.50196]
[1723536864123,17.0951,146.25,146.19,45.50196]
[1723536864324,17.0951,146.25,146.2,0.25098]
[1723536864547,12.62,146.22,146.21,0.12549]
[1723536865854,19.459,146.22,146.21,0.12549]
[1723536867455,19.4586,146.23,146.21,0.25098]
[1723536867663,6.839,146.22,146.21,0.25098]
[1723536867965,6.839,146.22,146.21,0.50196]
[1723536868568,12.62,146.23,146.21,0.50196]
[1723536868569,19.4585,146.23,146.21,0.50196]
[1723536868731,19.4585,146.23,146.22,0.37647]
[1723536869044,6.8385,146.23,146.22,0.50196]
[1723536869242,12.62,146.25,146.22,0.50196]
[1723536869243,6.838,146.24,146.23,0.12549]
[1723536869755,6.838,146.24,146.23,0.25098]
[1723536869937,6.838,146.24,146.23,0.37647]
[1723536870135,6.838,146.24,146.23,0.50196]
[1723536871377,6.838,146.24,146.23,0.37647]
[1723536871544,6.838,146.24,146.23,0.25098]
[1723536872564,6.838,146.24,146.23,0.12549]
[1723536872765,6.8392,146.22,146.2,0.12549]
[1723536872949,19.4592,146.22,146.2,0.50196]
[1723536873150,19.4592,146.22,146.18,6.502]
[1723536873151,6.8394,146.21,146.18,6.502]
[1723536873362,6.84,146.2,146.18,6.502]
[1723536874257,6.8396,146.21,146.19,45.25098]
[1723536874446,6.8396,146.21,146.2,0.37647]
[1723536874655,6.8396,146.21,146.2,0.50196]
[1723536875370,12.62,146.24,146.2,1.86983715]
[1723536875576,12.62,146.24,146.21,0.12549]
[1723536875577,19.4584,146.24,146.21,0.12549]
[1723536875870,19.4584,146.24,146.22,0.12549]
[1723536876044,6.8377,146.25,146.22,0.37647]
[1723536876244,6.838,146.24,146.23,0.12549]
[1723536876447,6.838,146.24,146.23,0.37647]
[1723536876652,6.8377,146.25,146.24,0.12549]
[1723536876958,6.8377,146.25,146.24,0.37647]
[1723536877353,6.8377,146.25,146.24,0.50196]
[1723536878979,6.8372,146.26,146.24,0.50196]
[1723536879159,6.8372,146.26,146.25,0.12549]
[1723536879470,6.8372,146.26,146.25,0.50196]
[1723536881557,17.0861,146.32,146.26,0.12549]
[1723536881777,17.0861,146.32,146.26,1.74368092]
[1723536881978,6.8362,146.28,146.27,0.12549]
[1723536882156,6.8362,146.28,146.27,0.50196]
[1723536883275,6.8362,146.28,146.27,0.37647]
[1723536883674,6.8362,146.28,146.27,0.50196]
[1723536884855,6.8358,146.29,146.28,0.12549]
[1723536885101,6.8358,146.29,146.28,0.37647]
[1723536885257,6.8358,146.29,146.28,0.50196]
[1723536886555,6.8353,146.3,146.28,0.50196]
[1723536886750,6.8353,146.3,146.29,0.12549]
[1723536886950,6.8353,146.3,146.29,0.50196]
[1723536887150,0.8348021,146.33,146.3,0.12549]
[1723536887349,0.8348021,146.33,146.3,0.25098]
[1723536887582,7.6686021,146.33,146.32,0.12549]
[1723536887784,7.6686021,146.33,146.32,0.25098]
[1723536888076,7.6686021,146.33,146.32,0.50196]
[1723536888473,0.8348021,146.33,146.32,0.50196]
[1723536889464,0.8348021,146.33,146.32,45.50196]
[1723536890790,0.8348021,146.33,146.32,0.50196]
[1723536892099,0.8348021,146.33,146.32,7.33626]
[1723536892286,0.8348021,146.33,146.32,52.33626]
[1723536892481,0.8348021,146.33,146.32,68.91666]
[1723536894090,0.8348021,146.33,146.32,62.08236]
[1723536895188,0.8348021,146.33,146.32,68.91666]
[1723536898212,0.8348021,146.33,146.32,89.5089463]
[1723536898575,0.8348021,146.33,146.32,88.14266]
[1723536899384,0.8348021,146.33,146.32,75.52266]
[1723536901401,0.8348021,146.33,146.32,76.8889985]
[1723536901701,0.8348021,146.33,146.32,75.52266]
[1723536902716,0.8348021,146.33,146.32,6.73149]
[1723536902877,0.8348021,146.33,146.32,14.93223442]
[1723536903510,0.8348021,146.33,146.32,13.56579]
[1723536903898,0.8348021,146.33,146.32,71.56226]
[1723536904217,0.8348021,146.33,146.32,86.86276]
[1723536904809,0.8348021,146.33,146.32,74.24276]
[1723536905608,12.62,146.42,146.38,0.12549]
[1723536905781,12.62,146.42,146.38,0.37647]
[1723536906179,12.62,146.42,146.39,0.12549]
[1723536906395,6.8306,146.4,146.39,0.50196]
[1723536906999,6.8301,146.41,146.39,0.50196]
[1723536907216,19.4496,146.42,146.4,0.12549]
[1723536907396,19.4496,146.42,146.4,0.37647]
[1723536907794,12.62,146.42,146.39,0.12549]
[1723536908097,28.6091,146.44,146.32,38.9918]
[1723536908309,6.8318,146.38,146.33,6.8338]
[1723536908520,6.8311,146.39,146.34,6.8333]
[1723536908990,6.8315,146.38,146.33,6.8338]
[1723536909198,6.832,146.37,146.34,0.12549]
[1723536909402,6.8316,146.38,146.34,52.33526]
[1723536909913,17.0736,146.43,146.35,6.8327]
[1723536910118,6.8311,146.39,146.36,45.37647]
[1723536910295,6.8315,146.38,146.37,45.25098]
[1723536910487,6.8315,146.38,146.37,0.37647]
[1723536910688,6.8315,146.38,146.37,0.50196]
[1723536911118,6.8315,146.38,146.37,0.37647]
[1723536911305,6.8315,146.38,146.37,0.12549]
[1723536912219,28.6091,146.44,146.37,0.12549]
[1723536912433,19.4502,146.41,146.38,0.25098]
[1723536912636,6.8306,146.4,146.39,0.25098]
[1723536912841,12.62,146.41,146.38,0.12549]
[1723536913019,12.62,146.41,146.38,0.25098]
[1723536913219,6.8306,146.4,146.39,0.12549]
[1723536913829,12.62,146.41,146.32,6.606]
[1723536914034,6.832,146.37,146.32,13.4402]
[1723536914433,19.4516,146.38,146.33,6.8337]
[1723536915239,6.8311,146.39,146.35,0.12549]
[1723536915436,6.8311,146.39,146.35,0.25098]
[1723536915639,6.8315,146.38,146.36,0.12549]
[1723536915830,6.8315,146.38,146.36,0.25098]
[1723536916016,6.8315,146.38,146.37,0.12549]
[1723536916217,6.832,146.37,146.36,0.37647]
[1723536916417,6.832,146.37,146.36,0.50196]
[1723536916934,6.8316,146.38,146.36,0.50196]
[1723536917511,6.832,146.37,146.36,0.50196]
[1723536917918,15.6115,146.39,146.34,45.0]
[1723536918120,6.8324,146.36,146.35,0.12549]
[1723536918354,19.4524,146.36,146.34,0.37647]
[1723536920650,6.8329,146.35,146.34,0.12549]
[1723536920853,19.4524,146.36,146.34,0.12549]
[1723536921048,19.4524,146.36,146.34,0.37647]
[1723536922283,6.833,146.35,146.33,45.0]
[1723536922463,6.833,146.35,146.32,45.25098]
[1723536922685,6.833,146.35,146.33,0.12549]
[1723536922836,6.8334,146.34,146.33,0.12549]
[1723536923242,19.80380043,146.38,146.33,0.25098]
[1723536923566,19.4525,146.36,146.34,0.12549]
[1723536923762,12.62,146.36,146.34,0.25098]
[1723536923968,12.62,146.38,146.35,0.12549]
[1723536924156,19.4517,146.38,146.35,45.37647]
[1723536924361,19.4517,146.38,146.36,0.12549]
[1723536924729,12.62,146.38,146.35,45.25098]
[1723536924932,12.62,146.38,146.35,0.25098]
[1723536925757,6.8324,146.36,146.35,0.25098]
[1723536926059,6.8324,146.36,146.35,0.37647]
[1723536926771,19.4519,146.38,146.35,0.37647]
[1723536927163,19.4519,146.38,146.36,0.12549]
[1723536927372,19.4519,146.38,146.36,0.37647]
[1723536927576,12.62,146.38,146.37,0.12549]
[1723536927761,19.4507,146.4,146.37,0.37647]
[1723536927955,19.4507,146.4,146.38,0.12549]
[1723536928260,19.4507,146.4,146.38,0.37647]
[1723536928478,6.831,146.39,146.38,0.37647]
[1723536929550,19.4507,146.4,146.38,0.50196]
[1723536929754,6.831,146.39,146.38,0.37647]
[1723536930260,6.831,146.39,146.38,0.50196]
[1723536930460,6.831,146.39,146.38,0.37647]
[1723536931777,19.4508,146.4,146.38,0.37647]
[1723536932372,6.831,146.39,146.38,0.37647]
[1723536932567,12.62,146.41,146.39,0.12549]
[1723536932773,12.62,146.41,146.39,0.37647]
[1723536932995,19.4501,146.41,146.4,0.12549]
[1723536933169,19.4501,146.41,146.4,0.37647]
[1723536934684,19.4501,146.41,146.4,0.50196]
[1723536934863,12.62,146.41,146.4,0.50196]
[1723536935265,6.8293,146.43,146.41,0.12549]
[1723536935496,19.4493,146.43,146.41,0.25098]
[1723536935686,19.4493,146.43,146.42,0.12549]
[1723536935881,19.4493,146.43,146.42,0.37647]
[1723536936090,12.62,146.43,146.42,0.50196]
[1723536936400,6.8292,146.43,146.42,0.37647]
[1723536936604,6.8292,146.43,146.42,0.50196]
[1723536937484,6.8292,146.43,146.42,0.37647]
[1723536937802,6.8296,146.42,146.41,45.0]
[1723536937979,6.8296,146.42,146.41,45.37647]
[1723536938976,12.62,146.43,146.41,45.37647]
[1723536939176,12.62,146.43,146.42,0.50196]
[1723536939395,6.8282,146.46,146.42,0.50196]
[1723536940097,6.8283,146.45,146.42,0.50196]
[1723536940673,6.8278,146.46,146.42,0.50196]
[1723536940871,6.8274,146.47,146.42,7.33146]
[1723536941098,6.8274,146.47,146.44,0.12549]
[1723536941394,6.8274,146.47,146.44,0.50196]
[1723536942792,0.8348021,146.48,146.44,0.50196]
[1723536943183,6.8282,146.45,146.44,0.50196]
[1723536944200,6.8278,146.46,146.44,0.50196]
[1723536944985,6.8273,146.47,146.44,0.50196]
[1723536946102,0.8348021,146.48,146.44,0.50196]
[1723536946311,6.8282,146.45,146.44,0.50196]
[1723536946607,6.8282,146.45,146.44,0.37647]
[1723536947312,6.8282,146.45,146.44,0.50196]
[1723536947515,6.8278,146.46,146.44,0.50196]
[1723536947826,6.8282,146.45,146.44,0.50196]
[1723536947982,0.8348021,146.48,146.44,0.50196]
[1723536948709,6.8278,146.46,146.44,0.50196]
[1723536949713,6.8282,146.45,146.44,0.37647]
[1723536950007,6.8278,146.46,146.44,0.37647]
[1723536952911,17.9026021,146.48,146.37,17.0794]
[1723536953080,17.9026021,146.48,146.37,23.5793]
[1723536953281,12.62,146.41,146.38,6.8315]
[1723536953502,12.62,146.43,146.39,6.8307]
[1723536954311,12.62,146.43,146.4,45.37647]
[1723536954514,12.62,146.43,146.4,52.33246]
[1723536955286,12.62,146.45,146.42,0.12549]
[1723536955487,12.62,146.45,146.42,45.37647]
[1723536955718,12.62,146.45,146.43,0.12549]
[1723536955889,12.62,146.45,146.43,0.37647]
[1723536956088,12.62,146.45,146.44,0.12549]
[1723536956278,12.62,146.45,146.44,0.37647]
[1723536956480,12.62,146.45,146.44,0.50196]
[1723536957287,6.8273,146.47,146.44,0.50196]
[1723536957507,6.8273,146.47,146.45,0.12549]
[1723536957717,6.8273,146.47,146.46,0.12549]
[1723536957889,7.6617021,146.48,146.46,0.37647]
[1723536958085,20.2817021,146.48,146.46,0.37647]
[1723536958391,0.8348021,146.48,146.46,0.37647]
[1723536958587,0.8348021,146.48,146.47,0.12549]
[1723536958820,13.4548021,146.48,146.47,0.37647]
[1723536959907,20.2816021,146.48,146.47,0.37647]
[1723536960403,20.2816021,146.48,146.46,45.12549]
[1723536960404,6.8273,146.47,146.46,45.0]
[1723536960616,6.8273,146.47,146.46,45.12549]
[1723536962715,13.4548021,146.48,146.46,45.25098]
[1723536962895,0.8348021,146.48,146.47,0.50196]
[1723536963717,0.8348021,146.48,146.47,7.32926]
[1723536963892,0.8348021,146.48,146.47,46.86718211]
[1723536964098,0.8348021,146.48,146.47,52.32926]
[1723536964327,0.8348021,146.48,146.47,58.79936]
[1723536965817,19.4432,146.56,146.52,0.12549]
[1723536966023,31.35,146.57,146.52,45.50196]
[1723536966228,6.8236,146.55,146.52,45.50196]
[1723536966429,6.8232,146.56,146.52,0.50196]
[1723536966725,6.8227,146.57,146.54,0.12549]
[1723536966899,6.8227,146.57,146.54,45.50196]
[1723536967418,2.78991769,146.6,146.54,45.50196]
[1723536967608,31.35,146.61,146.54,45.50196]
[1723536967922,6.8227,146.57,146.54,45.50196]
[1723536968106,6.8222,146.58,146.54,45.50196]
[1723536969417,6.8217,146.6,146.54,45.50196]
[1723536969614,6.8209,146.61,146.56,6.8231]
[1723536969820,6.8209,146.61,146.57,45.50196]
[1723536971193,0.8348021,146.62,146.57,45.50196]
[1723536971408,6.8217,146.59,146.57,45.50196]
[1723536971607,6.8212,146.6,146.57,45.50196]
[1723536971803,0.8348021,146.62,146.57,0.50196]
[1723536972008,7.6552021,146.62,146.57,0.50196]
[1723536972216,6.8208,146.61,146.57,7.32456]
[1723536972516,6.8208,146.61,146.59,0.12549]
[1723536972722,6.8208,146.61,146.59,0.50196]
[1723536972925,7.6552021,146.62,146.6,0.12549]
[1723536973224,7.6552021,146.62,146.61,0.12549]
[1723536973398,7.6552021,146.62,146.61,0.37647]
[1723536973913,7.6552021,146.62,146.61,0.50196]
[1723536974107,17.0477,146.65,146.61,0.50196]
[1723536974300,17.0477,146.65,146.61,0.37647]
[1723536975306,2.7714266,146.66,146.62,0.12549]
[1723536975513,17.0443,146.68,146.62,0.25098]
[1723536975714,6.8194,146.64,146.63,0.12549]
[1723536976424,6.8198,146.63,146.62,0.12549]
[1723536976722,6.8203,146.62,146.61,0.12549]
[1723536976926,6.8199,146.63,146.61,6.63006]
[1723536977099,6.8199,146.63,146.62,45.12549]
[1723536977440,6.8199,146.63,146.62,45.50196]
[1723536977999,6.8195,146.64,146.62,45.50196]
[1723536978229,6.8195,146.64,146.63,0.50196]
[1723536980749,6.819,146.65,146.64,0.12549]
[1723536981568,6.8194,146.64,146.63,0.37647]
[1723536981722,6.8194,146.64,146.63,0.50196]
[1723536982124,6.8194,146.64,146.63,0.37647]
[1723536982431,6.8194,146.64,146.63,0.12549]
[1723536982827,6.8194,146.64,146.63,0.25098]
[1723536983029,17.043,146.69,146.63,0.50196]
[1723536983236,6.8189,146.65,146.64,0.12549]
[1723536983516,6.8186,146.66,146.65,0.12549]
[1723536983729,6.8189,146.65,146.64,0.25098]
[1723536983919,6.8189,146.65,146.64,0.50196]
[1723536984925,6.8189,146.65,146.64,0.37647]
[1723536985245,6.8198,146.63,146.62,45.12549]
[1723536985446,6.8198,146.63,146.62,0.50196]
[1723536986246,6.8211,146.61,146.57,6.2226]
[1723536986559,6.8204,146.62,146.57,13.0452]
[1723536987551,6.8213,146.6,146.58,0.25098]
[1723536987761,34.0976,146.64,146.52,22.3871]
[1723536987940,17.051,146.62,146.52,22.3871]
[1723536988291,6.8218,146.59,146.55,6.8235]
[1723536988469,6.8212,146.61,146.56,6.823]
[1723536988762,6.8213,146.6,146.55,6.8235]
[1723536988962,6.8218,146.59,146.56,0.12549]
[1723536989147,6.8223,146.58,146.53,23.8848]
[1723536989347,6.8223,146.58,146.54,6.824]
[1723536989556,19.3618,146.59,146.54,6.824]
[1723536990435,19.3618,146.59,146.55,0.12549]
[1723536990641,2.73564707,146.62,146.55,0.25098]
[1723536990848,17.0504,146.63,146.56,0.25098]
[1723536991168,17.0504,146.63,146.54,0.25098]
[1723536991368,6.823,146.57,146.54,0.25098]
[1723536991865,6.823,146.57,146.55,0.25098]
[1723536992069,6.823,146.57,146.56,0.25098]
[1723536992249,6.823,146.57,146.56,0.50196]
[1723536993754,6.8222,146.58,146.56,0.50196]
[1723536993951,6.8226,146.57,146.56,0.37647]
[1723536994161,6.8226,146.57,146.56,0.12549]
[1723536994681,6.8238,146.55,146.53,0.12549]
[1723536994888,19.3638,146.55,146.53,0.25098]
[1723536995061,19.363,146.57,146.53,0.25098]
[1723536995263,19.363,146.57,146.53,45.25098]
[1723536995493,6.823,146.57,146.53,45.25098]
[1723536995683,6.823,146.57,146.55,0.12549]
[1723536995684,19.363,146.57,146.55,0.12549]
[1723536995881,19.3627,146.57,146.55,0.25098]
[1723536996078,19.3627,146.57,146.56,0.25098]
[1723536996252,19.3627,146.57,146.56,0.50196]
[1723536996459,6.824,146.54,146.52,22.3871]
[1723536996760,6.8236,146.55,146.52,22.3871]
[1723536997562,29.5964,146.58,146.49,15.8113]
[1723536997873,6.8251,146.52,146.49,15.8113]
[1723536998090,12.54,146.58,146.48,6.2278]
[1723536998261,6.8264,146.49,146.48,6.2278]
[1723536998991,6.826,146.5,146.48,6.2278]
[1723536999190,19.366,146.5,146.48,6.2278]
[1723536999391,6.8264,146.49,146.48,6.2278]
[1723536999559,6.8269,146.48,146.46,15.4947]
[1723536999766,19.366,146.5,146.44,6.342]
[1723537000270,19.366,146.5,146.45,6.8282]
[1723537000967,6.8269,146.48,146.44,6.342]
[1723537001287,12.54,146.48,146.44,6.342]
[1723537001471,19.3672,146.48,146.44,6.342]
[1723537001669,12.54,146.48,146.44,6.342]
[1723537001876,6.8268,146.48,146.44,6.342]
[1723537002281,6.8269,146.48,146.44,6.342]
[1723537002483,6.8269,146.48,146.45,0.50196]
[1723537002669,6.8264,146.49,146.45,0.50196]
[1723537002990,31.38,146.5,146.45,0.50196]
[1723537002991,38.2063,146.5,146.45,7.33016]
[1723537003194,38.2063,146.5,146.47,0.12549]
[1723537003385,6.8265,146.49,146.47,0.50196]
[1723537003690,6.8268,146.48,146.47,0.50196]
[1723537004492,6.8265,146.49,146.47,0.50196]
[1723537004690,31.38,146.5,146.47,0.37647]
[1723537004985,2.7723336,146.54,146.44,6.342]
[1723537005308,6.8286,146.45,146.4,6.4307]
[1723537005475,6.8288,146.44,146.4,6.4307]
[1723537005673,32.3167,146.5,146.4,6.4307]
[1723537005674,6.8292,146.43,146.4,6.4307]
[1723537007778,6.8292,146.43,146.41,45.12549]
[1723537007971,6.8292,146.43,146.42,0.12549]
[1723537008166,17.0684,146.47,146.36,21.7076]
[1723537008372,31.38,146.43,146.37,8.20029292]
[1723537008977,2.69906004,146.48,146.37,25.27949292]
[1723537009181,20.0,146.48,146.37,17.0792]
[1723537009376,20.0,146.48,146.38,6.8314]
[1723537009377,6.8295,146.43,146.38,6.8314]
[1723537009577,6.8296,146.42,146.37,23.911]
[1723537009767,6.8296,146.42,146.38,8.20035719]
[1723537009987,6.8292,146.43,146.39,0.12549]
[1723537010293,6.8292,146.43,146.39,45.50196]
[1723537010874,6.8287,146.44,146.39,52.33296]
[1723537011292,6.8283,146.45,146.4,6.8304]
[1723537011489,6.8283,146.45,146.41,45.50196]
[1723537012508,6.8288,146.44,146.41,45.50196]
[1723537012696,6.8288,146.44,146.41,0.50196]
[1723537012880,6.8288,146.44,146.43,0.12549]
[1723537013080,6.8288,146.44,146.43,0.50196]
[1723537013297,6.8288,146.44,146.43,0.25098]
[1723537013496,6.8288,146.44,146.43,0.37647]
[1723537014002,6.8284,146.45,146.43,0.37647]
[1723537014705,6.8284,146.45,146.44,0.12549]
[1723537015208,6.8287,146.44,146.43,0.25098]
[1723537015382,6.8287,146.44,146.43,0.37647]
[1723537015987,6.8287,146.44,146.43,0.12549]
[1723537016188,6.8287,146.44,146.43,0.50196]
[1723537016384,6.8287,146.44,146.43,0.37647]
[1723537016584,6.8287,146.44,146.43,0.25098]
[1723537016794,17.0679,146.48,146.37,6.8319]
[1723537016795,6.8301,146.41,146.37,6.8319]
[1723537016991,6.8297,146.42,146.38,8.20092739]
[1723537017397,6.8292,146.43,146.39,6.8309]
[1723537017600,6.8293,146.43,146.38,15.03232739]
[1723537017786,6.8296,146.42,146.37,17.0792]
[1723537017986,6.8296,146.42,146.38,8.45187227]
[1723537018307,6.8296,146.42,146.4,0.12549]
[1723537018606,6.8291,146.44,146.4,0.25098]
[1723537018897,6.8291,146.44,146.42,0.12549]
[1723537019108,6.8292,146.43,146.42,0.12549]
[1723537019301,6.8292,146.43,146.42,0.25098]
[1723537019487,6.8292,146.43,146.42,0.50196]
[1723537020319,48.451,146.45,146.34,17.0829]
[1723537020513,17.071,146.45,146.37,8.20099914]
[1723537020805,17.071,146.45,146.34,17.0829]
[1723537021108,6.8312,146.39,146.37,8.20097746]
[1723537021302,6.8311,146.39,146.37,8.20097746]
[1723537022305,6.8311,146.39,146.34,23.9162]
[1723537022506,6.8311,146.39,146.37,45.12549]
[1723537022916,6.8306,146.4,146.37,45.12549]
[1723537023082,6.8302,146.41,146.37,45.12549]
[1723537023503,6.8306,146.4,146.37,45.12549]
[1723537023685,6.8306,146.4,146.38,0.37647]
[1723537023898,6.83,146.42,146.39,0.12549]
[1723537024099,31.41,146.44,146.39,0.12549]
[1723537024300,6.8298,146.42,146.39,0.12549]
[1723537024494,6.8292,146.43,146.39,0.12549]
[1723537024711,6.8292,146.43,146.4,0.12549]
[1723537025020,6.8292,146.43,146.4,0.37647]
[1723537025194,6.8292,146.43,146.41,0.12549]
[1723537025401,6.8292,146.43,146.41,0.25098]
[1723537025611,6.8292,146.43,146.42,0.12549]
[1723537028303,6.8296,146.42,146.41,0.12549]
[1723537028921,6.8301,146.41,146.4,0.37647]
[1723537029123,6.8301,146.41,146.4,0.50196]
[1723537030430,17.0726,146.44,146.36,21.7076]
[1723537030600,6.8311,146.39,146.37,8.20096093]
[1723537031344,6.8311,146.39,146.36,21.7076]
[1723537031532,6.8311,146.39,146.38,0.12549]
[1723537031733,6.8311,146.39,146.38,0.50196]
[1723537033322,6.8311,146.39,146.38,0.37647]
[1723537033627,6.8317,146.38,146.36,6.1364]
[1723537033835,6.8317,146.38,146.37,8.20110446]
[1723537034025,6.831,146.39,146.37,8.20110446]
[1723537034241,6.831,146.39,146.36,6.1364]
[1723537034431,6.831,146.39,146.37,8.20109988]
[1723537034731,6.8315,146.38,146.37,8.20109988]
[1723537034942,6.8315,146.38,146.37,8.32658988]
[1723537035122,6.8315,146.38,146.37,53.57756988]
[1723537035531,6.8315,146.38,146.37,53.5775533]
[1723537035735,6.8306,146.4,146.37,53.5775533]
[1723537036038,6.8306,146.4,146.38,53.4520633]
[1723537036231,6.8302,146.41,146.39,0.25098]
[1723537036433,6.8302,146.41,146.4,0.25098]
[1723537036941,6.8302,146.41,146.39,0.25098]
[1723537036942,6.8306,146.4,146.39,0.12549]
[1723537037122,6.8306,146.4,146.39,0.25098]
[1723537038349,6.8306,146.4,146.35,17.0817]
[1723537038350,34.1449,146.44,146.33,6.41]
[1723537038640,6.8329,146.35,146.33,6.41]
[1723537038804,6.8329,146.35,146.34,8.20119973]
[1723537039008,6.8325,146.36,146.34,8.20119973]
[1723537039310,6.8329,146.35,146.34,8.20119973]
[1723537039863,6.8329,146.35,146.33,6.41]
[1723537040007,6.8329,146.35,146.34,8.20139514]
[1723537041334,32.4377,146.39,146.29,23.2366]
[1723537041544,6.8341,146.33,146.29,23.2366]
[1723537041742,6.8334,146.34,146.29,30.0723]
[1723537042242,6.833,146.35,146.3,6.8351]
[1723537042647,6.833,146.35,146.31,0.12549]
[1723537042814,6.8334,146.34,146.31,45.50196]
[1723537043014,6.8334,146.34,146.31,0.50196]